[Event "Titled Tuesday Blitz November 07 Late 2023"]
[White "WindWhistler11"]
[Black "Shapiro, Viktor"]
[BlackFideId "4175700"]
[WhiteElo "2441"]
[BlackElo "2590"]
[Result "0-1"]
[Round "8"]
[TimeControl "180+1"]
[Date "2023.11.07"]
[WhiteClock "0:00:00"]
[BlackClock "0:01:00"]
[Board "58"]

1. Nf3 {[%clk 0:03:00]}  Nf6 {[%clk 0:02:53]} 2. g3 {[%clk 0:03:00]}  c5 {[%clk 0:02:53]} 3. Bg2 {[%clk 0:03:00]}  Nc6 {[%clk 0:02:53]} 4. O-O {[%clk 0:02:58]}  g6 {[%clk 0:02:54]} 5. d3 {[%clk 0:02:58]}  Bg7 {[%clk 0:02:54]} 6. Nbd2 {[%clk 0:02:59]}  O-O {[%clk 0:02:54]} 7. e4 {[%clk 0:03:00]}  d6 {[%clk 0:02:54]} 8. c3 {[%clk 0:03:00]}  Rb8 {[%clk 0:02:54]} 9. d4 {[%clk 0:02:59]}  cxd4 {[%clk 0:02:46]} 10. Nxd4 {[%clk 0:02:55]}  Bd7 {[%clk 0:02:42]} 11. a4 {[%clk 0:02:49]}  a6 {[%clk 0:02:42]} 12. h3 {[%clk 0:02:46]}  Nxd4 {[%clk 0:02:25]} 13. cxd4 {[%clk 0:02:45]}  b5 {[%clk 0:02:25]} 14. a5 {[%clk 0:02:37]}  b4 {[%clk 0:02:22]} 15. Re1 {[%clk 0:02:32]}  Bb5 {[%clk 0:02:22]} 16. Qb3 {[%clk 0:02:12]}  e5 {[%clk 0:02:04]} 17. dxe5 {[%clk 0:02:03]}  dxe5 {[%clk 0:02:04]} 18. Qxb4 {[%clk 0:02:02]}  Bd3 {[%clk 0:01:56]} 19. Qa4 {[%clk 0:01:53]}  Qe7 {[%clk 0:01:53]} 20. b3 {[%clk 0:01:42]}  Rfc8 {[%clk 0:01:44]} 21. Ba3 {[%clk 0:01:38]}  Qa7 {[%clk 0:01:44]} 22. Rac1 {[%clk 0:01:21]}  Nh5 {[%clk 0:01:43]} 23. Re3 {[%clk 0:01:12]}  Bb5 {[%clk 0:01:25]} 24. Rxc8+ {[%clk 0:00:50]}  Rxc8 {[%clk 0:01:25]} 25. Qb4 {[%clk 0:00:49]}  Bf8 {[%clk 0:01:22]} 26. Rc3 {[%clk 0:00:41]}  Rd8 {[%clk 0:01:06]} 27. Qxf8+ {[%clk 0:00:28]}  Rxf8 {[%clk 0:01:06]} 28. Bxf8 {[%clk 0:00:29]}  Kxf8 {[%clk 0:01:06]} 29. Nf3 {[%clk 0:00:29]}  Nxg3 {[%clk 0:01:04]} 30. Rc8+ {[%clk 0:00:27]}  Kg7 {[%clk 0:01:04]} 31. Nxe5 {[%clk 0:00:00]}  Ne2+ {[%clk 0:01:00]} 0-1


[Site "https://www.chess.com"]

[Event "Titled Tuesday Blitz November 07 Late 2023"]
[White "Willy, Stephen"]
[Black "Hilary46"]
[WhiteFideId "30981468"]
[WhiteElo "2480"]
[BlackElo "2684"]
[Result "1-0"]
[Round "8"]
[TimeControl "180+1"]
[Date "2023.11.07"]
[WhiteClock "0:01:08"]
[BlackClock "0:00:03"]
[Board "61"]

1. e4 {[%clk 0:03:00]}  e5 {[%clk 0:02:56]} 2. Nf3 {[%clk 0:02:58]}  Nc6 {[%clk 0:02:57]} 3. c3 {[%clk 0:02:58]}  Nf6 {[%clk 0:02:54]} 4. d4 {[%clk 0:02:58]}  Nxe4 {[%clk 0:02:52]} 5. d5 {[%clk 0:02:58]}  Bc5 {[%clk 0:02:52]} 6. dxc6 {[%clk 0:02:58]}  Bxf2+ {[%clk 0:02:53]} 7. Ke2 {[%clk 0:02:58]}  Bb6 {[%clk 0:02:54]} 8. Qd5 {[%clk 0:02:58]}  Nf2 {[%clk 0:02:52]} 9. Qxe5+ {[%clk 0:02:58]}  Kf8 {[%clk 0:02:52]} 10. Be3 {[%clk 0:02:15]}  Ng4 {[%clk 0:02:44]} 11. Qg5 {[%clk 0:02:07]}  Qe8 {[%clk 0:02:20]} 12. Qxg4 {[%clk 0:02:04]}  Qxe3+ {[%clk 0:02:16]} 13. Kd1 {[%clk 0:02:04]}  dxc6 {[%clk 0:02:16]} 14. Qg5 {[%clk 0:01:58]}  Qxg5 {[%clk 0:01:42]} 15. Nxg5 {[%clk 0:01:59]}  Bg4+ {[%clk 0:01:42]} 16. Kc2 {[%clk 0:01:55]}  Rd8 {[%clk 0:01:33]} 17. Bd3 {[%clk 0:01:51]}  h6 {[%clk 0:00:53]} 18. Nf3 {[%clk 0:01:46]}  Bxf3 {[%clk 0:00:50]} 19. gxf3 {[%clk 0:01:45]}  g6 {[%clk 0:00:51]} 20. Nd2 {[%clk 0:01:39]}  Kg7 {[%clk 0:00:52]} 21. Nc4 {[%clk 0:01:33]}  Rd5 {[%clk 0:00:50]} 22. Rad1 {[%clk 0:01:28]}  Rhd8 {[%clk 0:00:20]} 23. Be4 {[%clk 0:01:23]}  Rxd1 {[%clk 0:00:20]} 24. Rxd1 {[%clk 0:01:23]}  Rxd1 {[%clk 0:00:21]} 25. Kxd1 {[%clk 0:01:24]}  Kf6 {[%clk 0:00:21]} 26. a4 {[%clk 0:01:18]}  Bg1 {[%clk 0:00:20]} 27. h3 {[%clk 0:01:16]}  Kg5 {[%clk 0:00:18]} 28. Na5 {[%clk 0:01:16]}  f5 {[%clk 0:00:18]} 29. Bd3 {[%clk 0:01:13]}  Kh4 {[%clk 0:00:10]} 30. Bf1 {[%clk 0:01:11]}  Kg3 {[%clk 0:00:07]} 31. Ke2 {[%clk 0:01:11]}  b6 {[%clk 0:00:04]} 32. Nxc6 {[%clk 0:01:11]}  a5 {[%clk 0:00:05]} 33. Ne7 {[%clk 0:01:08]}  g5 {[%clk 0:00:03]} 34. Nxf5+ {[%clk 0:01:08]}  Kf4 {[%clk 0:00:03]} 35. Nxh6 {[%clk 0:01:08]} 1-0


[Site "https://www.chess.com"]

[Event "Titled Tuesday Blitz November 07 Late 2023"]
[White "Ozates, Tuna"]
[Black "Herman, Daniel"]
[WhiteFideId "6354521"]
[BlackFideId "30935008"]
[WhiteElo "2575"]
[BlackElo "2421"]
[Result "1-0"]
[Round "8"]
[TimeControl "180+1"]
[Date "2023.11.07"]
[WhiteClock "0:00:33"]
[BlackClock "0:00:06"]
[Board "64"]

1. e4 {[%clk 0:02:57]}  c6 {[%clk 0:02:58]} 2. d4 {[%clk 0:02:51]}  d5 {[%clk 0:02:58]} 3. exd5 {[%clk 0:02:52]}  cxd5 {[%clk 0:02:57]} 4. c4 {[%clk 0:02:52]}  Nf6 {[%clk 0:02:57]} 5. Nc3 {[%clk 0:02:49]}  Nc6 {[%clk 0:02:56]} 6. Nf3 {[%clk 0:02:46]}  Bg4 {[%clk 0:02:54]} 7. cxd5 {[%clk 0:02:42]}  Nxd5 {[%clk 0:02:53]} 8. Qb3 {[%clk 0:02:43]}  Bxf3 {[%clk 0:02:48]} 9. gxf3 {[%clk 0:02:44]}  e6 {[%clk 0:02:22]} 10. Qxb7 {[%clk 0:02:41]}  Nxd4 {[%clk 0:02:20]} 11. Bb5+ {[%clk 0:02:41]}  Nxb5 {[%clk 0:02:16]} 12. Qc6+ {[%clk 0:02:39]}  Ke7 {[%clk 0:02:12]} 13. Qxb5 {[%clk 0:02:38]}  Nxc3 {[%clk 0:01:42]} 14. bxc3 {[%clk 0:02:32]}  Qb6 {[%clk 0:01:40]} 15. Qg5+ {[%clk 0:02:21]}  f6 {[%clk 0:01:39]} 16. Qg4 {[%clk 0:02:14]}  Qa6 {[%clk 0:01:22]} 17. Be3 {[%clk 0:02:09]}  Kf7 {[%clk 0:01:17]} 18. Rd1 {[%clk 0:02:04]}  Qb5 {[%clk 0:01:10]} 19. a4 {[%clk 0:01:58]}  Qc6 {[%clk 0:01:05]} 20. O-O {[%clk 0:01:58]}  Be7 {[%clk 0:01:01]} 21. Rde1 {[%clk 0:01:52]}  Rhd8 {[%clk 0:00:57]} 22. f4 {[%clk 0:01:38]}  f5 {[%clk 0:00:49]} 23. Qh5+ {[%clk 0:01:37]}  Kg8 {[%clk 0:00:49]} 24. Bd4 {[%clk 0:01:36]}  Bf6 {[%clk 0:00:34]} 25. Bxf6 {[%clk 0:01:31]}  gxf6 {[%clk 0:00:35]} 26. Re3 {[%clk 0:01:31]}  Rd7 {[%clk 0:00:31]} 27. Rfe1 {[%clk 0:01:09]}  Kh8 {[%clk 0:00:30]} 28. Rg3 {[%clk 0:01:06]}  Rg8 {[%clk 0:00:23]} 29. Qh6 {[%clk 0:01:01]}  Rf7 {[%clk 0:00:17]} 30. Rd1 {[%clk 0:00:48]}  Qe8 {[%clk 0:00:09]} 31. c4 {[%clk 0:00:42]}  Rxg3+ {[%clk 0:00:09]} 32. hxg3 {[%clk 0:00:41]}  Rf8 {[%clk 0:00:08]} 33. c5 {[%clk 0:00:37]}  Qf7 {[%clk 0:00:08]} 34. c6 {[%clk 0:00:35]}  Rc8 {[%clk 0:00:07]} 35. Rd7 {[%clk 0:00:34]}  Qg6 {[%clk 0:00:08]} 36. Qxg6 {[%clk 0:00:32]}  hxg6 {[%clk 0:00:06]} 37. c7 {[%clk 0:00:33]} 1-0


[Site "https://www.chess.com"]

[Event "Titled Tuesday Blitz November 07 Late 2023"]
[White "TheAlienParty"]
[Black "Silva Lucena, Cristian"]
[BlackFideId "2232588"]
[WhiteElo "2361"]
[BlackElo "2511"]
[Result "0-1"]
[Round "8"]
[TimeControl "180+1"]
[Date "2023.11.07"]
[WhiteClock "0:00:00"]
[BlackClock "0:00:29"]
[Board "67"]

1. c4 {[%clk 0:02:54]}  Nf6 {[%clk 0:02:57]} 2. g3 {[%clk 0:02:53]}  g6 {[%clk 0:02:58]} 3. Bg2 {[%clk 0:02:53]}  Bg7 {[%clk 0:02:59]} 4. Nf3 {[%clk 0:02:53]}  O-O {[%clk 0:03:00]} 5. d4 {[%clk 0:02:53]}  d6 {[%clk 0:03:00]} 6. O-O {[%clk 0:02:52]}  Nbd7 {[%clk 0:03:01]} 7. Nc3 {[%clk 0:02:49]}  e6 {[%clk 0:03:01]} 8. Bf4 {[%clk 0:02:47]}  Re8 {[%clk 0:02:58]} 9. Qd2 {[%clk 0:02:42]}  d5 {[%clk 0:02:49]} 10. cxd5 {[%clk 0:02:37]}  exd5 {[%clk 0:02:49]} 11. Rac1 {[%clk 0:02:37]}  c6 {[%clk 0:02:50]} 12. Ne5 {[%clk 0:02:34]}  Nf8 {[%clk 0:02:47]} 13. h3 {[%clk 0:02:31]}  Be6 {[%clk 0:02:46]} 14. Bh6 {[%clk 0:02:30]}  Bh8 {[%clk 0:02:43]} 15. Na4 {[%clk 0:02:25]}  Qc8 {[%clk 0:02:43]} 16. Kh2 {[%clk 0:02:21]}  N6d7 {[%clk 0:02:43]} 17. Ng4 {[%clk 0:02:10]}  f5 {[%clk 0:02:33]} 18. Ne3 {[%clk 0:01:58]}  Nf6 {[%clk 0:02:33]} 19. f3 {[%clk 0:01:56]}  Qd8 {[%clk 0:02:27]} 20. Nc5 {[%clk 0:01:55]}  Bc8 {[%clk 0:02:27]} 21. Rfe1 {[%clk 0:01:50]}  Qe7 {[%clk 0:02:27]} 22. Nc2 {[%clk 0:01:44]}  Ne6 {[%clk 0:02:28]} 23. Nd3 {[%clk 0:01:32]}  Nh5 {[%clk 0:02:20]} 24. Ne5 {[%clk 0:01:23]}  Qd6 {[%clk 0:01:53]} 25. f4 {[%clk 0:01:17]}  Nd8 {[%clk 0:01:47]} 26. Bg5 {[%clk 0:01:14]}  Nf7 {[%clk 0:01:46]} 27. Nxf7 {[%clk 0:01:10]}  Kxf7 {[%clk 0:01:46]} 28. Bf3 {[%clk 0:01:05]}  Nf6 {[%clk 0:01:45]} 29. Qb4 {[%clk 0:01:01]}  Qxb4 {[%clk 0:01:42]} 30. Nxb4 {[%clk 0:01:01]}  Ne4 {[%clk 0:01:16]} 31. h4 {[%clk 0:00:57]}  Bxd4 {[%clk 0:01:08]} 32. Nd3 {[%clk 0:00:42]}  Kg7 {[%clk 0:01:05]} 33. h5 {[%clk 0:00:33]}  h6 {[%clk 0:01:02]} 34. Bh4 {[%clk 0:00:32]}  g5 {[%clk 0:01:00]} 35. fxg5 {[%clk 0:00:25]}  hxg5 {[%clk 0:01:00]} 36. e3 {[%clk 0:00:18]}  Bf6 {[%clk 0:00:55]} 37. Bxe4 {[%clk 0:00:11]}  fxe4 {[%clk 0:00:54]} 38. Nc5 {[%clk 0:00:06]}  gxh4 {[%clk 0:00:53]} 39. gxh4 {[%clk 0:00:06]}  b6 {[%clk 0:00:46]} 40. Rg1+ {[%clk 0:00:04]}  Kf7 {[%clk 0:00:46]} 41. Nb3 {[%clk 0:00:04]}  c5 {[%clk 0:00:46]} 42. Rcf1 {[%clk 0:00:03]}  Ke7 {[%clk 0:00:46]} 43. Rg6 {[%clk 0:00:03]}  Rf8 {[%clk 0:00:46]} 44. h6 {[%clk 0:00:02]}  Be5+ {[%clk 0:00:38]} 45. Kg1 {[%clk 0:00:02]}  Rxf1+ {[%clk 0:00:38]} 46. Kxf1 {[%clk 0:00:02]}  Bf5 {[%clk 0:00:38]} 47. Rg5 {[%clk 0:00:01]}  Ke6 {[%clk 0:00:38]} 48. h7 {[%clk 0:00:01]}  Rh8 {[%clk 0:00:38]} 49. Rg8 {[%clk 0:00:01]}  Rxh7 {[%clk 0:00:37]} 50. Ra8 {[%clk 0:00:02]}  Bxb2 {[%clk 0:00:33]} 51. Re8+ {[%clk 0:00:01]}  Kd7 {[%clk 0:00:32]} 52. Ra8 {[%clk 0:00:01]}  Kc6 {[%clk 0:00:32]} 53. a4 {[%clk 0:00:00]}  c4 {[%clk 0:00:29]} 0-1


[Site "https://www.chess.com"]

[Event "Titled Tuesday Blitz November 07 Late 2023"]
[White "Chigaev, Maksim"]
[Black "Pavlidou, Ekaterini"]
[WhiteFideId "4108116"]
[BlackFideId "4213262"]
[WhiteElo "2871"]
[BlackElo "2357"]
[Result "1-0"]
[Round "8"]
[TimeControl "180+1"]
[Date "2023.11.07"]
[WhiteClock "0:00:47"]
[BlackClock "0:00:03"]
[Board "71"]

1. Nf3 {[%clk 0:03:00]}  c5 {[%clk 0:02:59]} 2. g3 {[%clk 0:03:00]}  Nc6 {[%clk 0:02:59]} 3. Bg2 {[%clk 0:03:01]}  e5 {[%clk 0:02:59]} 4. O-O {[%clk 0:03:01]}  d5 {[%clk 0:02:59]} 5. d3 {[%clk 0:03:01]}  h6 {[%clk 0:02:57]} 6. c3 {[%clk 0:03:01]}  Nf6 {[%clk 0:02:57]} 7. a3 {[%clk 0:03:01]}  a5 {[%clk 0:02:55]} 8. a4 {[%clk 0:03:01]}  Be7 {[%clk 0:02:54]} 9. Na3 {[%clk 0:03:02]}  Be6 {[%clk 0:02:53]} 10. e4 {[%clk 0:02:59]}  d4 {[%clk 0:02:49]} 11. Qc2 {[%clk 0:02:59]}  Rc8 {[%clk 0:02:42]} 12. Nc4 {[%clk 0:02:58]}  Qc7 {[%clk 0:02:37]} 13. Nh4 {[%clk 0:02:56]}  g6 {[%clk 0:02:16]} 14. f4 {[%clk 0:02:54]}  Bxc4 {[%clk 0:02:10]} 15. dxc4 {[%clk 0:02:53]}  Ng4 {[%clk 0:02:07]} 16. Qe2 {[%clk 0:02:44]}  h5 {[%clk 0:02:03]} 17. Nf3 {[%clk 0:02:41]}  exf4 {[%clk 0:01:19]} 18. gxf4 {[%clk 0:02:41]}  Qd7 {[%clk 0:01:05]} 19. h3 {[%clk 0:02:35]}  Nh6 {[%clk 0:01:03]} 20. Bd2 {[%clk 0:02:28]}  d3 {[%clk 0:01:01]} 21. Qe3 {[%clk 0:02:26]}  f5 {[%clk 0:01:00]} 22. Rad1 {[%clk 0:02:25]}  O-O {[%clk 0:00:49]} 23. Bc1 {[%clk 0:02:21]}  Rcd8 {[%clk 0:00:44]} 24. e5 {[%clk 0:02:20]}  Rfe8 {[%clk 0:00:31]} 25. b3 {[%clk 0:02:19]}  Bf8 {[%clk 0:00:20]} 26. Ne1 {[%clk 0:02:12]}  Nf7 {[%clk 0:00:17]} 27. Rxd3 {[%clk 0:02:10]}  Qe7 {[%clk 0:00:15]} 28. Rd5 {[%clk 0:02:10]}  Nb8 {[%clk 0:00:13]} 29. Nd3 {[%clk 0:02:09]}  Nc6 {[%clk 0:00:12]} 30. Rd1 {[%clk 0:02:05]}  b6 {[%clk 0:00:12]} 31. Bd2 {[%clk 0:02:00]}  h4 {[%clk 0:00:10]} 32. Be1 {[%clk 0:02:01]}  Bh6 {[%clk 0:00:11]} 33. Bf2 {[%clk 0:02:01]}  g5 {[%clk 0:00:11]} 34. Kh1 {[%clk 0:01:45]}  gxf4 {[%clk 0:00:11]} 35. Qe2 {[%clk 0:01:29]}  Ncxe5 {[%clk 0:00:10]} 36. Nxe5 {[%clk 0:01:24]}  Nxe5 {[%clk 0:00:10]} 37. Rxd8 {[%clk 0:01:22]}  Rxd8 {[%clk 0:00:11]} 38. Rxd8+ {[%clk 0:01:23]}  Qxd8 {[%clk 0:00:10]} 39. Qxe5 {[%clk 0:01:24]}  Qd1+ {[%clk 0:00:08]} 40. Kh2 {[%clk 0:01:11]}  f3 {[%clk 0:00:09]} 41. Bh1 {[%clk 0:00:48]}  Bg7 {[%clk 0:00:08]} 42. Qd5+ {[%clk 0:00:44]}  Qxd5 {[%clk 0:00:07]} 43. cxd5 {[%clk 0:00:45]}  Be5+ {[%clk 0:00:07]} 44. Kg1 {[%clk 0:00:46]}  Bxc3 {[%clk 0:00:08]} 45. Bxf3 {[%clk 0:00:46]}  Kf7 {[%clk 0:00:08]} 46. Bxh4 {[%clk 0:00:46]}  Bb4 {[%clk 0:00:07]} 47. Be2 {[%clk 0:00:45]}  Ke8 {[%clk 0:00:07]} 48. Bc4 {[%clk 0:00:45]}  Kd7 {[%clk 0:00:07]} 49. Kf2 {[%clk 0:00:46]}  Kd6 {[%clk 0:00:07]} 50. Kf3 {[%clk 0:00:46]}  Bd2 {[%clk 0:00:07]} 51. Bg3+ {[%clk 0:00:47]}  Kd7 {[%clk 0:00:03]} 52. Bf4 {[%clk 0:00:47]} 1-0


[Site "https://www.chess.com"]

[Event "Titled Tuesday Blitz November 07 Late 2023"]
[White "Villarreal, Agustin"]
[Black "Mekhitarian, Krikor Sevag"]
[WhiteFideId "125687"]
[BlackFideId "2107660"]
[WhiteElo "2422"]
[BlackElo "2732"]
[Result "0-1"]
[Round "8"]
[TimeControl "180+1"]
[Date "2023.11.07"]
[WhiteClock "0:00:03"]
[BlackClock "0:00:06"]
[Board "72"]

1. d4 {[%clk 0:03:00]}  Nf6 {[%clk 0:02:58]} 2. Nf3 {[%clk 0:03:01]}  g6 {[%clk 0:02:58]} 3. c4 {[%clk 0:03:00]}  Bg7 {[%clk 0:02:59]} 4. Nc3 {[%clk 0:03:00]}  d5 {[%clk 0:02:59]} 5. Bg5 {[%clk 0:03:00]}  dxc4 {[%clk 0:02:57]} 6. e4 {[%clk 0:02:57]}  c5 {[%clk 0:02:55]} 7. d5 {[%clk 0:02:53]}  b5 {[%clk 0:02:55]} 8. e5 {[%clk 0:02:50]}  b4 {[%clk 0:02:55]} 9. exf6 {[%clk 0:02:49]}  exf6 {[%clk 0:02:45]} 10. Qe2+ {[%clk 0:02:38]}  Kf8 {[%clk 0:02:45]} 11. Be3 {[%clk 0:02:38]}  bxc3 {[%clk 0:02:39]} 12. Bxc5+ {[%clk 0:02:38]}  Kg8 {[%clk 0:02:39]} 13. bxc3 {[%clk 0:02:38]}  Nd7 {[%clk 0:02:17]} 14. Bd4 {[%clk 0:02:32]}  Nb6 {[%clk 0:01:36]} 15. g3 {[%clk 0:01:44]}  Bf5 {[%clk 0:01:26]} 16. Bg2 {[%clk 0:01:33]}  Bd3 {[%clk 0:01:25]} 17. Qe3 {[%clk 0:01:19]}  Nxd5 {[%clk 0:01:22]} 18. Qd2 {[%clk 0:01:18]}  h5 {[%clk 0:01:15]} 19. Kd1 {[%clk 0:01:11]}  Rb8 {[%clk 0:01:11]} 20. Ne1 {[%clk 0:01:06]}  Bf5 {[%clk 0:00:58]} 21. h3 {[%clk 0:01:05]}  Bh6 {[%clk 0:00:52]} 22. f4 {[%clk 0:01:04]}  h4 {[%clk 0:00:52]} 23. Rf1 {[%clk 0:00:38]}  hxg3 {[%clk 0:00:51]} 24. a4 {[%clk 0:00:17]}  Rb3 {[%clk 0:00:41]} 25. a5 {[%clk 0:00:16]}  Kh7 {[%clk 0:00:35]} 26. h4 {[%clk 0:00:14]}  Nxc3+ {[%clk 0:00:30]} 27. Bxc3 {[%clk 0:00:13]}  Rxc3 {[%clk 0:00:31]} 28. h5 {[%clk 0:00:12]}  gxh5 {[%clk 0:00:25]} 29. Rh1 {[%clk 0:00:10]}  Bxf4 {[%clk 0:00:19]} 30. Qxd8 {[%clk 0:00:10]}  Rxd8+ {[%clk 0:00:18]} 31. Ke2 {[%clk 0:00:11]}  Kg6 {[%clk 0:00:17]} 32. Bf3 {[%clk 0:00:10]}  Re8+ {[%clk 0:00:13]} 33. Kf1 {[%clk 0:00:10]}  Rxe1+ {[%clk 0:00:13]} 34. Rxe1 {[%clk 0:00:09]}  Rxf3+ {[%clk 0:00:13]} 35. Kg1 {[%clk 0:00:10]}  Kg5 {[%clk 0:00:09]} 36. Re8 {[%clk 0:00:08]}  c3 {[%clk 0:00:10]} 37. Rf8 {[%clk 0:00:07]}  Bg6 {[%clk 0:00:10]} 38. Rc8 {[%clk 0:00:07]}  c2 {[%clk 0:00:10]} 39. Rc5+ {[%clk 0:00:07]}  Kg4 {[%clk 0:00:09]} 40. Kg2 {[%clk 0:00:03]}  Rf2+ {[%clk 0:00:09]} 41. Kg1 {[%clk 0:00:04]}  Be3 {[%clk 0:00:07]} 42. Rc4+ {[%clk 0:00:04]}  Kg5 {[%clk 0:00:05]} 43. Rhh4 {[%clk 0:00:04]}  Rh2+ {[%clk 0:00:05]} 44. Kf1 {[%clk 0:00:03]}  Bd3+ {[%clk 0:00:05]} 45. Ke1 {[%clk 0:00:03]}  Bd2# {[%clk 0:00:06]} 0-1


[Site "https://www.chess.com"]

[Event "Titled Tuesday Blitz November 07 Late 2023"]
[White "Carrasco Miranda, Andres"]
[Black "Tokhirjonova, Gulrukhbegim"]
[WhiteFideId "3405990"]
[BlackFideId "14203626"]
[WhiteElo "2415"]
[BlackElo "2627"]
[Result "0-1"]
[Round "8"]
[TimeControl "180+1"]
[Date "2023.11.07"]
[WhiteClock "0:00:10"]
[BlackClock "0:00:22"]
[Board "74"]

1. c4 {[%clk 0:02:33]}  Nf6 {[%clk 0:02:59]} 2. g3 {[%clk 0:02:34]}  e6 {[%clk 0:03:00]} 3. Bg2 {[%clk 0:02:34]}  d5 {[%clk 0:03:00]} 4. Nf3 {[%clk 0:02:34]}  c5 {[%clk 0:03:00]} 5. O-O {[%clk 0:02:34]}  Nc6 {[%clk 0:03:01]} 6. d4 {[%clk 0:02:34]}  dxc4 {[%clk 0:02:59]} 7. dxc5 {[%clk 0:02:33]}  Bxc5 {[%clk 0:03:00]} 8. Qxd8+ {[%clk 0:02:31]}  Nxd8 {[%clk 0:02:48]} 9. Nbd2 {[%clk 0:02:30]}  c3 {[%clk 0:02:41]} 10. bxc3 {[%clk 0:02:31]}  O-O {[%clk 0:02:41]} 11. Nb3 {[%clk 0:02:31]}  Bb6 {[%clk 0:02:38]} 12. c4 {[%clk 0:02:30]}  Nc6 {[%clk 0:02:38]} 13. Bb2 {[%clk 0:02:30]}  Bd7 {[%clk 0:02:35]} 14. Rfd1 {[%clk 0:02:29]}  Rfd8 {[%clk 0:02:35]} 15. Ne5 {[%clk 0:02:21]}  Nxe5 {[%clk 0:02:30]} 16. Bxe5 {[%clk 0:02:22]}  Bxf2+ {[%clk 0:02:26]} 17. Kxf2 {[%clk 0:02:18]}  Ng4+ {[%clk 0:02:26]} 18. Ke1 {[%clk 0:02:16]}  Nxe5 {[%clk 0:02:26]} 19. Bxb7 {[%clk 0:02:14]}  Rab8 {[%clk 0:02:26]} 20. Ba6 {[%clk 0:02:02]}  Kf8 {[%clk 0:02:11]} 21. c5 {[%clk 0:01:54]}  Ke7 {[%clk 0:02:08]} 22. Rac1 {[%clk 0:01:52]}  Bc8 {[%clk 0:01:57]} 23. Rxd8 {[%clk 0:01:46]}  Kxd8 {[%clk 0:01:57]} 24. Bd3 {[%clk 0:01:46]}  Bb7 {[%clk 0:01:48]} 25. Nd4 {[%clk 0:01:06]}  Bd5 {[%clk 0:01:43]} 26. c6 {[%clk 0:00:53]}  Rc8 {[%clk 0:01:27]} 27. Ba6 {[%clk 0:00:29]}  Rc7 {[%clk 0:01:26]} 28. Bb7 {[%clk 0:00:28]}  Bc4 {[%clk 0:01:09]} 29. a4 {[%clk 0:00:22]}  a6 {[%clk 0:01:07]} 30. a5 {[%clk 0:00:21]}  Ke7 {[%clk 0:01:01]} 31. Nf3 {[%clk 0:00:17]}  Nxf3+ {[%clk 0:00:57]} 32. exf3 {[%clk 0:00:18]}  Bd5 {[%clk 0:00:56]} 33. Bxa6 {[%clk 0:00:18]}  Rxc6 {[%clk 0:00:48]} 34. Rxc6 {[%clk 0:00:16]}  Bxc6 {[%clk 0:00:49]} 35. f4 {[%clk 0:00:16]}  Kd6 {[%clk 0:00:48]} 36. Bd3 {[%clk 0:00:16]}  Kc5 {[%clk 0:00:48]} 37. Kf2 {[%clk 0:00:14]}  h6 {[%clk 0:00:45]} 38. Ke3 {[%clk 0:00:14]}  f6 {[%clk 0:00:44]} 39. h4 {[%clk 0:00:12]}  Kb4 {[%clk 0:00:28]} 40. a6 {[%clk 0:00:11]}  Ka5 {[%clk 0:00:23]} 41. Be4 {[%clk 0:00:10]}  Bxe4 {[%clk 0:00:20]} 42. Kxe4 {[%clk 0:00:11]}  Kxa6 {[%clk 0:00:20]} 43. f5 {[%clk 0:00:09]}  e5 {[%clk 0:00:20]} 44. Kd5 {[%clk 0:00:10]}  Kb5 {[%clk 0:00:20]} 45. Ke6 {[%clk 0:00:10]}  e4 {[%clk 0:00:20]} 46. Kf7 {[%clk 0:00:11]}  e3 {[%clk 0:00:21]} 47. Kxg7 {[%clk 0:00:11]}  e2 {[%clk 0:00:21]} 48. Kxf6 {[%clk 0:00:12]}  e1=Q {[%clk 0:00:22]} 49. Kf7 {[%clk 0:00:10]}  Qxg3 {[%clk 0:00:22]} 0-1


[Site "https://www.chess.com"]

[Event "Titled Tuesday Blitz November 07 Late 2023"]
[White "Janaszak, Dawid"]
[Black "Polaczek, Richard"]
[WhiteFideId "1119206"]
[BlackFideId "200026"]
[WhiteElo "2614"]
[BlackElo "2414"]
[Result "1-0"]
[Round "8"]
[TimeControl "180+1"]
[Date "2023.11.07"]
[WhiteClock "0:01:48"]
[BlackClock "0:00:12"]
[Board "75"]

1. Nf3 {[%clk 0:02:59]}  d5 {[%clk 0:02:59]} 2. e3 {[%clk 0:02:58]}  c5 {[%clk 0:02:53]} 3. c4 {[%clk 0:02:56]}  Nf6 {[%clk 0:02:49]} 4. cxd5 {[%clk 0:02:49]}  Nxd5 {[%clk 0:02:48]} 5. Nc3 {[%clk 0:02:50]}  Nxc3 {[%clk 0:02:39]} 6. bxc3 {[%clk 0:02:50]}  g6 {[%clk 0:02:38]} 7. h4 {[%clk 0:02:42]}  Bg7 {[%clk 0:02:37]} 8. h5 {[%clk 0:02:41]}  O-O {[%clk 0:02:37]} 9. hxg6 {[%clk 0:02:37]}  hxg6 {[%clk 0:02:37]} 10. Qa4 {[%clk 0:02:37]}  e6 {[%clk 0:02:28]} 11. Ba3 {[%clk 0:02:35]}  Nd7 {[%clk 0:02:18]} 12. Qf4 {[%clk 0:02:29]}  Qa5 {[%clk 0:01:59]} 13. Qh2 {[%clk 0:02:24]}  Nf6 {[%clk 0:01:53]} 14. Bb2 {[%clk 0:02:15]}  Rd8 {[%clk 0:01:35]} 15. c4 {[%clk 0:02:06]}  b6 {[%clk 0:00:57]} 16. Bc3 {[%clk 0:02:03]}  Qa4 {[%clk 0:00:53]} 17. Ng5 {[%clk 0:02:00]}  Rd7 {[%clk 0:00:38]} 18. Ne4 {[%clk 0:01:56]}  Nh5 {[%clk 0:00:26]} 19. Bxg7 {[%clk 0:01:47]}  Kxg7 {[%clk 0:00:21]} 20. g4 {[%clk 0:01:47]}  Bb7 {[%clk 0:00:20]} 21. gxh5 {[%clk 0:01:48]}  Bxe4 {[%clk 0:00:12]} 22. Qe5+ {[%clk 0:01:48]} 1-0


[Site "https://www.chess.com"]